Cogmind - Beta 10.2 *** ADVENTURER MODE // 2021.10.02 @ 00:13:03 Player: soymachine Result: Destroyed by S-27 Virus with Autogun Performance ------------- Evolutions (5) 2500 Regions Visited (10) 2000 Robots Destroyed (84) 420 Value Destroyed (3422) 3422 Prototype IDs (6) 120 Alien Tech Used (0) 0 Bonus (2814) 2814 TOTAL SCORE: 11276 Bonus ------- High Alert Combat Kills 60 Met Warlord at Base 500 MAIN.C Attacked Warlord 500 Warlord Defense Kill 1754 Cogmind --------- Core Integrity 0/1000 Matter 300/300 Energy 99/100 System Corruption 3% Temperature Cool (0) Movement Core (50) Location -4/Proximity Caves Parts ------- > --- POWER (1) -------- (None) > --- PROPULSION (6) --- (None) > --- UTILITY (8) ------ Improved Power Shielding Experimental Power Shielding > --- WEAPON (2) ------- (None) > --- INVENTORY (4) ---- Armored Medium Treads Force Rifle Makeshift Shrapnel Gun Missile Launcher Peak State ------------ > --- POWER ------------ Fission Core > --- PROPULSION ------- Armored Treads Improved Medium Treads Armored Medium Treads Armored Medium Treads Armored Medium Treads Armored Medium Treads > --- UTILITY ---------- Advanced Heat Sink Large Storage Unit Advanced Signal Interpreter Advanced Terrain Scan Processor Improved Power Shielding Experimental Power Shielding Layered Light Armor Plating Makeshift Hacking Suite > --- WEAPON ----------- Vortex Cannon Nova Cannon > --- INVENTORY -------- Micro Fission Core Force Rifle Vortex Rail Makeshift Shrapnel Gun Hypervelocity Gauss Cannon Missile Launcher Long-range Missile Launcher Spear Signal Generator Self-destruct Interrupter [Rating: 88] Favorites ----------- Power Fission Core Engine Light Ion Engine Power Core Fission Core Propulsion Light Treads Treads Light Treads Leg Aluminum Leg Utility Large Storage Unit Device Advanced Heat Sink Storage Large Storage Unit Processor Advanced Terrain Scan Processor Hackware Makeshift Hacking Suite Protection Improved Power Shielding Weapon Nova Cannon Energy Gun Medium Laser Energy Cannon Nova Cannon Ballistic Gun Minigun Ballistic Cannon Hypervelocity Gauss Cannon Launcher Shock Bomb Launcher Piercing Weapon Spear Build | -11 -10 -9 -9 -8 -7 -6 -5 -5 -5 -4 ------- Run | Scr Mat Mat Sto Mat Fac Fac Fac Upp War Pro Slots Evolved 10 | . . 2 . 2 2 2 2 . . . Power . | . . . . . . . . . . . Propulsion 4 | . . 2 . . . 1 1 . . . Utility 6 | . . . . 2 2 1 1 . . . Weapon . | . . . . . . . . . . . Parts Attached 65 | . . 6 12 14 6 10 1 6 10 . Power 5 | . . . 1 1 2 1 . . . . Engine 4 | . . . 1 1 2 . . . . . Core 1 | . . . . . . 1 . . . . Reactor . | . . . . . . . . . . . Propulsion 18 | . . 1 4 6 1 1 . 1 4 . Treads 11 | . . . . 4 1 1 . 1 4 . Leg 7 | . . 1 4 2 . . . . . . Wheel . | . . . . . . . . . . . Hover . | . . . . . . . . . . . Flight . | . . . . . . . . . . . Utility 17 | . . 2 1 3 3 4 . 3 1 . Device 7 | . . 2 . 2 1 1 . 1 . . Storage 2 | . . . 1 1 . . . . . . Processor 3 | . . . . . . 2 . 1 . . Hackware 1 | . . . . . . . . 1 . . Protection 4 | . . . . . 2 1 . . 1 . Artifact . | . . . . . . . . . . . Weapon 25 | . . 3 6 4 . 4 1 2 5 . Energy Gun 3 | . . 1 1 . . . . . 1 . Energy Cannon 6 | . . 1 2 . . 1 . . 2 . Ballistic Gun 3 | . . . 1 1 . 1 . . . . Ballistic Cannon 6 | . . 1 1 1 . . 1 1 1 . Launcher 5 | . . . 1 2 . 1 . . 1 . Special Weapon . | . . . . . . . . . . . Impact Weapon . | . . . . . . . . . . . Slashing Weapon . | . . . . . . . . . . . Piercing Weapon 2 | . . . . . . 1 . 1 . . Special Melee Weapon . | . . . . . . . . . . . Unidentified Prototypes 6 | . . . 2 . . 1 . . 3 . Parts Lost 23 | . . . 12 2 . 1 . 4 4 . Power 2 | . . . 1 1 . . . . . . Propulsion 10 | . . . 7 . . . . 2 1 . Utility 4 | . . . . 1 . 1 . 2 . . Weapon 7 | . . . 4 . . . . . 3 . Highest Loss Streak 9 | . . . 9 1 . 1 . 3 3 . Average Slot Usage (%) 85 | . 85 80 93 64 74 97 88 80 88 11 Engine 4 | . 14 11 10 6 4 5 . . . . Core 2 | . . . . . . . 5 5 4 . Treads 20 | . . . . 12 26 31 29 24 25 . Leg 8 | . 28 26 39 8 . . . . . . Device 10 | . . 9 11 15 18 15 11 5 4 . Storage 6 | . 14 11 10 3 7 6 5 5 5 . Processor 6 | . . . . . . 12 11 9 10 . Hackware 1 | . . . . . . . . 3 4 . Protection 7 | . . . . . 1 10 11 11 15 11 Energy Gun 1 | . 28 14 . . . . . . . . Energy Cannon 5 | . . 1 10 . . 4 5 5 7 . Ballistic Gun 2 | . . . 2 8 7 5 3 . . . Ballistic Cannon 2 | . . 5 7 3 . . 1 . 2 . Launcher 1 | . . . . 4 7 1 . . . . Naked Turns . | . . . . . . . . . . . Heaviest Build 60 | 12 12 17 43 29 38 50 56 56 60 3 Greatest Support 158 | 20 20 30 40 66 86 116 110 113 158 3 Greatest Overweight (x) 6 | . . . 2 3 1 . . . 6 . Average Overweight (x) . | . . . . . . . . . . . Largest Inventory Capacity 12 | . 6 6 12 10 10 10 10 10 10 4 Average Capacity 9 | . 6 6 10 6 10 10 10 10 10 4 Most Carried 10 | . 6 6 8 6 10 10 10 10 10 4 Average Carried 8 | . 6 5 6 4 7 8 9 10 9 4 Final Capacity 10 | 6 6 6 4 10 10 10 10 10 10 4 Final Carried 10 | 6 6 6 4 6 8 9 10 10 9 4 Class Distribution -------------------- 37% | Scavenger-Mutant 36% | Mutant 25% | Hacker-Mutant Dominant Class ---------------- Mutant | -10/Materials Mutant | -9/Materials Mutant | -9/Storage Scavenger-Mutant | -8/Materials Scavenger-Mutant | -7/Factory Scavenger-Mutant | -6/Factory Mutant | -5/Factory Hacker-Mutant | -5/Upper Caves Hacker-Mutant | -5/Warlord Mutant | -4/Proximity Caves Resources | -11 -10 -9 -9 -8 -7 -6 -5 -5 -5 -4 ----------- Run | Scr Mat Mat Sto Mat Fac Fac Fac Upp War Pro Matter Collected 1849 | 200 . 114 271 288 187 76 104 379 230 . Remotely . | . . . . . . . . . . . Salvage Created 3057 | . 88 222 783 506 106 399 104 520 329 . Parts 157 | . 5 11 59 28 10 17 4 13 10 . Haulers Intercepted . | . . . . . . . . . . . Recyclers Shooed 2 | . . 1 . . . 1 . . . . Parts Field Recycled . | . . . . . . . . . . . Retrieved Matter . | . . . . . . . . . . . Parts Self-Destructed 91 | . . . . . . . . 14 77 . Prevented 26 | . . . . . . . . . 26 . Kills | -11 -10 -9 -9 -8 -7 -6 -5 -5 -5 -4 ------- Run | Scr Mat Mat Sto Mat Fac Fac Fac Upp War Pro Combat Hostiles Destroyed 74 | . 2 8 23 10 . 10 1 8 12 . Melee 2 | . . . . . . . . 2 . . Guns 11 | . 2 1 3 3 . . . . 2 . Cannons 41 | . . 7 15 5 . 2 1 6 5 . AOE 19 | . . . 4 2 . 8 . . 5 . Classes Destroyed 14 | . 1 2 2 1 2 1 . 2 3 . Worker 3 | . . . 1 . 2 . . . . . Recycler 3 | . . . 1 1 . 1 . . . . Mechanic 1 | . . . . . 1 . . . . . Operator 1 | . . . . 1 . . . . . . Watcher 2 | . . . . . 1 . 1 . . . Swarmer 16 | . . 3 10 . . 3 . . . . Grunt 27 | . 2 3 6 4 . 4 . 3 5 . Brawler 1 | . . . . . . . . 1 . . Duelist 2 | . . . . . . . . 2 . . Sentry 20 | . . 2 7 6 . 2 1 2 . . Hunter 2 | . . . . . . . . . 2 . Programmer 4 | . . . . . . 1 . . 3 . Striker 1 | . . . . . . . . . 1 . Executioner 1 | . . . . . . . . . 1 . Best Kill Streak 9 | . 2 4 6 5 2 9 1 5 9 . Combat Bots Only 9 | . 2 4 6 4 . 8 1 5 9 . Max Kills in Single Turn 3 | . 1 1 2 1 2 3 1 1 2 . Gunslinging . | . . . . . . . . . . . Exploded 3 | . . . 2 1 . 3 . . 2 . Melee 1 | . . . . . . . . 1 . . Uniques/NPCs Destroyed . | . . . . . . . . . . . Combat | -11 -10 -9 -9 -8 -7 -6 -5 -5 -5 -4 -------- Run | Scr Mat Mat Sto Mat Fac Fac Fac Upp War Pro Damage Taken 4862 | . 8 168 1043 415 58 247 59 655 1880 329 Core 1246 | . . 29 135 60 . 19 . 64 610 329 Absorbed by Shields . | . . . . . . . . . . . Core Remaining (%) 90 | 100 100 . 59 89 100 97 . . . . Volleys Fired 169 | . 4 18 58 29 4 14 3 17 22 . Largest 2 | . 2 2 2 2 2 2 2 2 2 . Hottest 174 | . 90 112 91 64 61 156 174 174 163 . Shots Fired 286 | . 8 36 93 51 8 23 6 31 30 . Gun 80 | . 8 18 11 29 4 4 1 . 5 . Cannon 177 | . . 18 80 16 . 9 5 31 18 . Launcher 29 | . . . 2 6 4 10 . . 7 . Special . | . . . . . . . . . . . Kinetic 146 | . . 16 57 45 4 4 3 14 3 . Thermal 65 | . 8 18 . . . 9 3 17 10 . Explosive 24 | . . . 2 5 . 10 . . 7 . Electromagnetic 41 | . . 2 34 1 4 . . . . . Entropic 10 | . . . . . . . . . 10 . Robot Hit Streak 60 | . 8 21 32 15 21 40 45 60 24 . Robot Miss Streak 2 | . . 2 2 1 . . . 1 1 . Penetration Max . | . . . . . . . . . . . Secondary Targets . | . . . . . . . . . . . Shots Hit Robots 242 | . 8 30 73 45 6 19 5 33 23 . Core Hits 132 | . 4 10 32 16 6 22 3 13 26 . Critical Hits 14 | . . 1 2 1 . . 2 6 2 . Critical Kills 9 | . . 1 1 1 . . 1 3 2 . Critical Parts Destroyed 4 | . . . 1 . . . 1 2 . . Melee Attacks 5 | . . . . . . . . 5 . . Impact . | . . . . . . . . . . . Slashing . | . . . . . . . . . . . Piercing 5 | . . . . . . . . 5 . . Sneak Attacks . | . . . . . . . . . . . Combat Hostiles . | . . . . . . . . . . . Follow-up Attacks . | . . . . . . . . . . . Damage Inflicted 8394 | . 90 452 1738 1083 157 1623 147 976 2128 . Guns 1222 | . 90 205 149 478 74 42 . . 184 . Cannons 3591 | . . 247 1158 292 . 316 147 840 591 . Explosions 3445 | . . . 431 313 83 1265 . . 1353 . Melee 136 | . . . . . . . . 136 . . Ramming . | . . . . . . . . . . . Kinetic 1983 | . . 210 692 770 74 42 30 165 . . Thermal 1729 | . 90 205 83 . . 316 117 675 243 . Explosive 3233 | . . . 348 294 . 1238 . . 1353 . Electromagnetic 781 | . . 37 615 19 83 27 . . . . Impact . | . . . . . . . . . . . Slashing . | . . . . . . . . . . . Piercing 136 | . . . . . . . . 136 . . Entropic 532 | . . . . . . . . . 532 . Highest Corruption 8 | . . . . . . . . 8 8 3 Average Corruption 6 | . . . . . . . . 7 4 3 Corruption Purged . | . . . . . . . . . . . Effects 33 | . . . . . . . . 23 9 1 Message Errors 6 | . . . . . . . . 3 2 1 Matter Fused 10 | . . . . . . . . 8 2 . Heat Flow Errors 2 | . . . . . . . . 1 1 . Energy Discharges 2 | . . . . . . . . 1 1 . Parts Rejected 1 | . . . . . . . . 1 . . Data Loss (minor) 10 | . . . . . . . . 7 3 . Misfires 2 | . . . . . . . . 2 . . Overload Shots . | . . . . . . . . . . . Overflow Damage 115 | . . . 8 7 . 4 . 5 91 . Projectiles 16 | . . . . . . . . 5 11 . Explosions 99 | . . . 8 7 . 4 . . 80 . Melee . | . . . . . . . . . . . Knockbacks 10 | . . 2 5 2 . . . 1 . . Impact . | . . . . . . . . . . . Kinetic 8 | . . 2 3 2 . . . 1 . . Secondary 2 | . . . 2 . . . . . . . Self-Inflicted Damage 160 | . . . 102 . 58 . . . . . Shots 6 | . . . 3 . 3 . . . . . Rammed . | . . . . . . . . . . . Targets Rammed . | . . . . . . . . . . . Kicked . | . . . . . . . . . . . Crushed . | . . . . . . . . . . . Highest Temperature 465 | . 66 144 465 42 8 78 81 364 249 . Average Temperature 72 | . 26 65 74 12 3 26 34 150 62 . Received Heat Transfer 996 | . 6 57 333 198 . 102 9 189 75 27 Effects 4 | . . . 1 . . . . 3 . . Interference 3 | . . . . . . . . 3 . . Short Circuit 1 | . . . 1 . . . . . . . Siege Activations . | . . . . . . . . . . . Robots Corrupted 1 | . . . 1 . . . . . . . Combat Hostiles 1 | . . . 1 . . . . . . . Parts Fried 1 | . . . 1 . . . . . . . Impact Corruptions . | . . . . . . . . . . . Robots Melted . | . . . . . . . . . . . Combat Hostiles . | . . . . . . . . . . . Parts Melted 3 | . . . . . . . 1 2 . . Heat Transferred 2248 | . 248 592 150 . . 296 111 629 222 . Parts Sabotaged 12 | . . . . . . . . . 12 . Parts Stolen . | . . . . . . . . . . . Parts Stripped . | . . . . . . . . . . . Power Chain Reactions 3 | . . . 2 . 1 . . . . . Missiles Intercepted . | . . . . . . . . . . . Alert | -11 -10 -9 -9 -8 -7 -6 -5 -5 -5 -4 ------- Run | Scr Mat Mat Sto Mat Fac Fac Fac Upp War Pro Peak Influence 577 | . 65 265 482 577 259 332 57 . . . Initial 224 | . . 23 95 120 224 26 5 . . . Average 160 | . 24 96 236 373 155 105 10 . . . Maximum Alert Level 2 | . . 1 2 2 1 1 . . . . Low Security (%) 60 | . 100 75 30 22 47 90 100 . . . Level 1 32 | . . 24 65 25 52 9 . . . . Level 2 6 | . . . 4 52 . . . . . . Level 3 . | . . . . . . . . . . . Level 4 . | . . . . . . . . . . . Level 5 . | . . . . . . . . . . . High Security . | . . . . . . . . . . . Max Security . | . . . . . . . . . . . Squads Dispatched 10 | . 1 . 4 2 . 3 . . . . Investigation 2 | . 1 . 1 . . . . . . . Extermination 2 | . . . . . . 2 . . . . Reinforcement 4 | . . . 1 2 . 1 . . . . Assault . | . . . . . . . . . . . Garrison 2 | . . . 2 . . . . . . . Intercept . | . . . . . . . . . . . Construction Impeded 1 | . . . . . . 1 . . . . Haulers Reinforced . | . . . . . . . . . . . Stealth | -11 -10 -9 -9 -8 -7 -6 -5 -5 -5 -4 --------- Run | Scr Mat Mat Sto Mat Fac Fac Fac Upp War Pro Distress Signals 7 | . . . 5 2 . . . . . . Communications Jammed . | . . . . . . . . . . . Distress Signals . | . . . . . . . . . . . Times Spotted 140 | . 3 10 38 18 2 11 2 12 35 9 Peak Tracking Total 20 | . 3 5 10 5 1 5 1 5 20 9 Tactical Retreats 9 | . . . 2 2 . . . 4 1 . Traps | -11 -10 -9 -9 -8 -7 -6 -5 -5 -5 -4 ------- Run | Scr Mat Mat Sto Mat Fac Fac Fac Upp War Pro Traps Triggered 1 | . . . 1 . . . . . . . Indirectly . | . . . . . . . . . . . Trap Hack Attempts . | . . . . . . . . . . . Triggered . | . . . . . . . . . . . Disarmed . | . . . . . . . . . . . Reprogrammed . | . . . . . . . . . . . Reused . | . . . . . . . . . . . Traps Extracted . | . . . . . . . . . . . Installed . | . . . . . . . . . . . Triggered 18 | . . . . . . . . 4 14 . Machines | -11 -10 -9 -9 -8 -7 -6 -5 -5 -5 -4 ---------- Run | Scr Mat Mat Sto Mat Fac Fac Fac Upp War Pro Machines Disabled 7 | . . . 3 1 . 3 . . . . Max in Single Turn 2 | . . . 1 1 . 2 . . . . Machines Sabotaged . | . . . . . . . . . . . Garrisons Compromised . | . . . . . . . . . . . Overloaded Fab Kills . | . . . . . . . . . . . Fab Network Shutdowns . | . . . . . . . . . . . Hacking | -11 -10 -9 -9 -8 -7 -6 -5 -5 -5 -4 --------- Run | Scr Mat Mat Sto Mat Fac Fac Fac Upp War Pro Machines Accessed 25 | . 4 1 5 . 2 3 1 . 9 . Terminals 10 | . 4 1 5 . . . . . . . Fabricators 6 | . . . . . 2 3 1 . . . Repair Stations . | . . . . . . . . . . . Recycling Units . | . . . . . . . . . . . Scanalyzers . | . . . . . . . . . . . Garrison Access . | . . . . . . . . . . . Total Hacks 40 | . 8 3 9 . 2 5 1 . 12 . Successful 24 | . 3 1 5 . 1 1 1 . 12 . Failed 16 | . 5 2 4 . 1 4 . . . . Catastrophic 4 | . 2 . 2 . . . . . . . Database Lockouts . | . . . . . . . . . . . Manual 1 | . . . . . . . . . 1 . Terminals 20 | . 8 3 9 . . . . . . . Fabricators 8 | . . . . . 2 5 1 . . . Repair Stations . | . . . . . . . . . . . Recycling Units . | . . . . . . . . . . . Scanalyzers . | . . . . . . . . . . . Garrison Access . | . . . . . . . . . . . Terminal Hacks 21 | . 3 1 5 . . . . . 12 . Record 10 | . . . . . . . . . 10 . Open Door 3 | . . . 1 . . . . . 2 . Locate Traps 1 | . . 1 . . . . . . . . Surveillance Status 1 | . . . 1 . . . . . . . Hauler Manifests 1 | . . . 1 . . . . . . . Registered Components 2 | . 1 . 1 . . . . . . . Zone Layout 3 | . 2 . 1 . . . . . . . Fabricator Hacks 3 | . . . . . 1 1 1 . . . Network Status 2 | . . . . . 1 . 1 . . . Build 1 | . . . . . . 1 . . . . Repair Station Hacks . | . . . . . . . . . . . Recycling Unit Hacks . | . . . . . . . . . . . Scanalyzer . | . . . . . . . . . . . Garrison Access Hacks . | . . . . . . . . . . . Unauthorized Hacks . | . . . . . . . . . . . Terminals . | . . . . . . . . . . . Fabricators . | . . . . . . . . . . . Repair Stations . | . . . . . . . . . . . Recycling Units . | . . . . . . . . . . . Scanalyzers . | . . . . . . . . . . . Garrison Access . | . . . . . . . . . . . Data Cores Recovered . | . . . . . . . . . . . Used . | . . . . . . . . . . . Hacking Detections 9 | . 3 1 2 . 1 2 . . . . Full Trace Events 2 | . 1 . 1 . . . . . . . Feedback Events . | . . . . . . . . . . . Feedback Blocked . | . . . . . . . . . . . Robot Schematics Acquired . | . . . . . . . . . . . Robots Built . | . . . . . . . . . . . Matter . | . . . . . . . . . . . Time . | . . . . . . . . . . . Total Robot Build Rating . | . . . . . . . . . . . Part Schematics Acquired . | . . . . . . . . . . . Parts Built 1 | . . . . . . 1 . . . . Matter 256 | . . . . . . 256 . . . . Time 64 | . . . . . . 64 . . . . Total Part Build Rating 8 | . . . . . . 8 . . . . Parts Repaired . | . . . . . . . . . . . Time . | . . . . . . . . . . . Parts Recycled . | . . . . . . . . . . . Recycled Matter . | . . . . . . . . . . . Retrieved Matter . | . . . . . . . . . . . Retrieved Components . | . . . . . . . . . . . Parts Scanalyzed . | . . . . . . . . . . . Part Schematics Acquired . | . . . . . . . . . . . Parts Damaged . | . . . . . . . . . . . Bothacking | -11 -10 -9 -9 -8 -7 -6 -5 -5 -5 -4 ------------ Run | Scr Mat Mat Sto Mat Fac Fac Fac Upp War Pro Used RIF Installer . | . . . . . . . . . . . Robots Hacked . | . . . . . . . . . . . Non-combat . | . . . . . . . . . . . Combat . | . . . . . . . . . . . Robot Hacks Applied . | . . . . . . . . . . . Relay Couplers Released . | . . . . . . . . . . . Robots Rewired . | . . . . . . . . . . . Allies Hacked . | . . . . . . . . . . . Hacks Repelled . | . . . . . . . . . . . Allies | -11 -10 -9 -9 -8 -7 -6 -5 -5 -5 -4 -------- Run | Scr Mat Mat Sto Mat Fac Fac Fac Upp War Pro Total Allies . | . . . . . . . . . . . Largest Group . | . . . . . . . . . . . Highest-Rated Group . | . . . . . . . . . . . Highest-Rated Ally . | . . . . . . . . . . . Total Orders . | . . . . . . . . . . . Ally Attacks . | . . . . . . . . . . . Total Damage . | . . . . . . . . . . . Kills . | . . . . . . . . . . . Allies Corrupted . | . . . . . . . . . . . Allies Melted . | . . . . . . . . . . . Intel | -11 -10 -9 -9 -8 -7 -6 -5 -5 -5 -4 ------- Run | Scr Mat Mat Sto Mat Fac Fac Fac Upp War Pro Robot Analysis Total . | . . . . . . . . . . . Derelict Logs Recovered 1 | . . . . . . . . 1 . . Drone Launches . | . . . . . . . . . . . Drone Recoveries . | . . . . . . . . . . . Exploration | -11 -10 -9 -9 -8 -7 -6 -5 -5 -5 -4 ------------- Run | Scr Mat Mat Sto Mat Fac Fac Fac Upp War Pro Turns Passed 5961 | . 113 339 863 387 769 877 397 603 1571 42 Spaces Moved 3304 | 1 76 209 474 192 417 433 222 289 909 82 Core 134 | . . . 7 40 . . . . 5 82 Treads 2322 | . . . . 57 417 433 222 289 904 . Legs 848 | 1 76 209 467 95 . . . . . . Wheels . | . . . . . . . . . . . Hover . | . . . . . . . . . . . Flight . | . . . . . . . . . . . Fastest Speed 50 | 120 120 120 50 50 160 162 162 162 162 50 Average Speed 153 | 120 120 120 140 147 168 162 162 162 164 50 Slowest Speed 350 | 120 120 120 180 200 180 162 162 162 350 50 Overloaded Moves . | . . . . . . . . . . . Propulsion Burnouts . | . . . . . . . . . . . Robots Hopped . | . . . . . . . . . . . Cave-ins Triggered . | . . . . . . . . . . . Exploration Rate (%) 31 | 2 22 19 79 34 10 14 6 53 89 13 Regions Visited 10 Branch Regions 4 Pre-discovered Areas 1 | . . . . . . . . 1 . . Known Exits Taken 3 | . . . . . . 1 1 1 . . Unknown Exits Taken 7 | 1 1 1 1 1 1 . . . 1 . Scrap Searched 2 | . . . . . . . . 2 . . Spaces Dug . | . . . . . . . . . . . Terrain Destroyed 189 | . . . 16 51 3 53 . . 66 . Melee . | . . . . . . . . . . . Projectile 8 | . . . . . . 2 . . 6 . AOE 181 | . . . 16 51 3 51 . . 60 . Terrain Rammed . | . . . . . . . . . . . Walls Destroyed . | . . . . . . . . . . . Machines Disabled . | . . . . . . . . . . . Actions | -11 -10 -9 -9 -8 -7 -6 -5 -5 -5 -4 --------- Run | Scr Mat Mat Sto Mat Fac Fac Fac Upp War Pro Total 3913 | . 90 263 577 243 478 583 254 384 958 83 Wait 306 | . 11 18 24 5 39 115 22 68 4 . Move 3294 | . 75 208 473 191 416 432 221 288 908 82 Hop . | . . . . . . . . . . . Pick Up 43 | . . 6 6 3 9 8 4 . 7 . Fast Attach 21 | . . 1 2 9 2 . . 4 3 . Attach 18 | . . 1 6 1 3 4 . . 3 . Detach . | . . . . . . . . . . . Swap 26 | . . 4 4 4 1 6 1 2 4 . Drop 31 | . . 7 4 1 4 4 3 . 7 1 Fire 169 | . 4 18 58 29 4 14 3 17 22 . Melee 5 | . . . . . . . . 5 . . Ram . | . . . . . . . . . . . Kick . | . . . . . . . . . . . Crush . | . . . . . . . . . . . Escape Stasis . | . . . . . . . . . . . Rewire . | . . . . . . . . . . . Trap . | . . . . . . . . . . . Miscellaneous . | . . . . . . . . . . . Route ------- -11/Scrapyard -10/Materials -9/Materials -9/Storage -8/Materials -7/Factory -6/Factory -5/Factory -5/Upper Caves -5/Warlord -4/Proximity Caves History --------- Turn | Location | Event 1 | -11/Scrapyard | Discovered new exit (range 0) 1 | -11/Scrapyard | Entered Materials 62 | -10/Materials | Discovered new exit (range 16) 114 | -10/Materials | Entered another Materials area 114 | -9/Materials | Evolved 2 slots: Propulsion x2 322 | -9/Materials | Build established: Mutant 341 | -9/Materials | Discovered new exit (range 13) 453 | -9/Materials | Entered Storage 1153 | -9/Storage | Garrison activated, responded to threat 1303 | -9/Storage | Discovered new exit (range 15) 1316 | -9/Storage | Entered Materials 1316 | -8/Materials | Evolved 2 slots: Utility x2 1344 | -8/Materials | Lost 9 parts (1p5n3w) 1691 | -8/Materials | Discovered new exit (range 6) 1696 | -8/Materials | Build established: Scavenger-Mutant 1703 | -8/Materials | Entered Factory 1703 | -7/Factory | Evolved 2 slots: Utility x2 2324 | -7/Factory | Discovered new exit (range 5) 2472 | -7/Factory | Entered another Factory area 2472 | -6/Factory | Evolved 2 slots: Propulsion x1, Utility x1 2487 | -6/Factory | Found Prototype Processor 2488 | -6/Factory | Identified Exp. Signal Interpreter 2641 | -6/Factory | Fabricated Nova Cannon (x1) 2815 | -6/Factory | Destroyed 8 combat bots 3309 | -6/Factory | Discovered new exit (range 10) 3348 | -6/Factory | Identified exit to Factory 3349 | -6/Factory | Entered another Factory area 3349 | -5/Factory | Evolved 2 slots: Propulsion x1, Utility x1 3527 | -5/Factory | Build established: Mutant 3664 | -5/Factory | Discovered new exit (range 20) 3736 | -5/Factory | Identified exit to Upper Caves 3746 | -5/Factory | Entered Upper Caves 3832 | -5/Upper Caves | Lost 3 parts (1n2u) 4126 | -5/Upper Caves | Attracted the attention of an 0b10 checkpoint 4262 | -5/Upper Caves | Build established: Hacker-Mutant 4337 | -5/Upper Caves | A Derelict revealed a hidden shortcut to "reach the base" 4347 | -5/Upper Caves | Identified exit to Warlord 4349 | -5/Upper Caves | Entered Warlord 4453 | -5/Warlord | Discovered new exit (range 9) 4550 | -5/Warlord | System corruption cleaned by Quarantine Array 4985 | -5/Warlord | Visited the Vortex Lab 4996 | -5/Warlord | Warlord's base attacked by MAIN.C 5001 | -5/Warlord | Found Prototype Energy Cannon 5002 | -5/Warlord | Identified Vortex Cannon 5005 | -5/Warlord | Found Prototype Energy Gun 5286 | -5/Warlord | Found Signal Generator 5346 | -5/Warlord | Warlord forces counterattacked 5441 | -5/Warlord | Met Warlord 5671 | -5/Warlord | Warlord base infiltrated, sounded retreat 5798 | -5/Warlord | Spotted Executioner 5824 | -5/Warlord | Spotted Striker 5833 | -5/Warlord | Build established: Scavenger-Mutant 5840 | -5/Warlord | Destroyed Striker 5845 | -5/Warlord | Identified Vortex Rail 5848 | -5/Warlord | Destroyed Executioner 5881 | -5/Warlord | Destroyed 9 combat bots 5886 | -5/Warlord | Lost 3 parts (1n2w) 5896 | -5/Warlord | Spotted B-75 Beast 5896 | -5/Warlord | Spotted B-86 Titan 5896 | -5/Warlord | Spotted Striker 5902 | -5/Warlord | Spotted Striker 5918 | -5/Warlord | Core integrity fell below 50% 5918 | -5/Warlord | Spotted Striker 5920 | -5/Warlord | Entered Proximity Caves 5947 | -4/Proximity Caves | Core integrity fell below 20% 5962 | -4/Proximity Caves | Destroyed by S-27 Virus with Autogun Last Messages --------------- 05907_ Mak. Hacking Suite blown off. 05907_ E-15 Imp destroyed. 05908_ Knocked back. 05909_ Cesium-ion Thruster fries itself beyond repair. 05910_ Knocked back. 05912_ E-15 Imp destroyed. 05914_ Propulsion Shielding fries itself beyond repair. 05914_ Segregator fries itself beyond repair. 05914_ Knocked back. 05916_ Penetrated by Slug. 05916_ Slug penetrates Wall. 05917_ Knocked back. 05918_ Cesium-ion Thruster fries itself beyond repair. 05918_ Segregator fries itself beyond repair. 05920_ Slug penetrates Wall. LOCATION=UNKNOWN GOAL=ESCAPE 05920_ Dropped Lrg. Storage Unit. 05921_ Self-destruct Interrupter emitting active interruption sequence. 05929_ EJ99L1MWU 4WHWMMQHG83NP03 JVPY